Cogmind - Beta 13 @@@ ROGUE MODE // 2024.04.02 @ 02:01:39 Player: fippe Result: Destroyed by N0-CS7(R) with Subdweller Laser Performance ------------- Evolutions (0) 0 Regions Visited (3) 600 Robots Destroyed (22) 110 Value Destroyed (452) 452 Prototype IDs (1) 20 Alien Tech Used (0) 0 Bonus (0) 0 TOTAL SCORE: 1182 Bonus ------- None Cogmind --------- Core Integrity 0/250 Matter 290/300 Energy 228/260 System Corruption 0% Temperature Cool (15) Movement Rolling (120) Ox1 Location -10/Subcaves Parts ------- > --- POWER (1+1) ------ Subdweller Power Source (+) Light Nuclear Core > --- PROPULSION (2) --- Improved Treads Subdweller Monowheel > --- UTILITY (2) ------ Subdweller Optics Improved Targeting Computer > --- WEAPON (2) ------- Powered Cannon > --- INVENTORY (5) ---- Light Armor Plating Makeshift Thermal Plating Battle Rifle Barrage Gun Mining Laser Peak State ------------ > --- POWER ------------ Subdweller Power Source Light Nuclear Core > --- PROPULSION ------- Improved Treads Subdweller Monowheel > --- UTILITY ---------- Subdweller Optics Improved Targeting Computer > --- WEAPON ----------- Powered Cannon > --- INVENTORY -------- Light Armor Plating Makeshift Thermal Plating Battle Rifle Barrage Gun Mining Laser [Rating: 28] Favorites ----------- Power Improved Ion Engine Engine Improved Ion Engine Power Core Light Nuclear Core Propulsion Improved Treads Treads Improved Treads Leg Aluminum Leg Wheel Subdweller Monowheel Utility Improved Targeting Computer Device Tractor Beam Storage Small Storage Unit Processor Improved Targeting Computer Protection Light Armor Plating Weapon Light Assault Rifle Energy Cannon Powered Cannon Ballistic Gun Light Assault Rifle Special Weapon Mining Laser Build | -11 -10 -10 -10 ------- Run | Yrd Mat Min Sub Slots Evolved . | . . . . Power . | . . . . Propulsion . | . . . . Utility . | . . . . Weapon . | . . . . Parts Attached 30 | 8 6 4 12 Power 5 | 1 2 . 2 Engine 4 | 1 2 . 1 Core 1 | . . . 1 Reactor . | . . . . Propulsion 6 | 2 2 1 1 Treads 3 | . 2 1 . Leg 2 | 2 . . . Wheel 1 | . . . 1 Hover . | . . . . Flight . | . . . . Utility 10 | 3 2 2 3 Device 5 | 2 . 2 1 Storage 1 | 1 . . . Processor 2 | . 2 . . Hackware . | . . . . Protection 2 | . . . 2 Artifact . | . . . . Weapon 9 | 2 . 1 6 Energy Gun . | . . . . Energy Cannon 1 | . . . 1 Ballistic Gun 7 | 2 . 1 4 Ballistic Cannon . | . . . . Launcher . | . . . . Special Weapon 1 | . . . 1 Impact Weapon . | . . . . Slashing Weapon . | . . . . Piercing Weapon . | . . . . Special Melee Weapon . | . . . . Unidentified Prototypes 1 | . . . 1 Parts Lost 4 | . . 2 2 Power . | . . . . Propulsion 1 | . . . 1 Utility 1 | . . 1 . Weapon 2 | . . 1 1 Highest Loss Streak 2 | . . 1 2 To Critical Strikes . | . . . . Average Slot Usage (%) 97 | . 96 98 97 Engine 12 | . 14 14 9 Core 1 | . . . 5 Treads 27 | . 26 28 26 Device 11 | . 11 12 9 Processor 13 | . 12 14 13 Protection 1 | . . . 4 Ballistic Gun 26 | . 28 27 25 Naked Turns . | . . . . Heaviest Build 22 | 12 12 11 22 Greatest Support 46 | 20 46 46 46 Greatest Overweight (x) 2 | 2 . . 1 Average Overweight (x) . | . . . . Largest Inventory Capacity 8 | 8 5 5 5 Average Capacity 5 | 7 5 5 5 Most Carried 5 | 4 5 4 5 Average Carried 3 | 1 4 2 3 Final Capacity 5 | 5 5 5 5 Final Carried 5 | 3 3 2 5 Class Distribution -------------------- 100% | Mutant Dominant Class ---------------- Mutant | -10/Materials Mutant | -10/Mines Mutant | -10/Subcaves Resources | -11 -10 -10 -10 ----------- Run | Yrd Mat Min Sub Matter Collected 750 | 328 78 148 196 Remotely 41 | 10 . 31 . Salvage Created 658 | 141 78 242 197 Parts 45 | 10 3 14 18 Haulers Intercepted . | . . . . Recyclers Shooed . | . . . . Parts Field Recycled . | . . . . Retrieved Matter . | . . . . Parts Self-Destructed 15 | . . . 15 Prevented . | . . . . Kills | -11 -10 -10 -10 ------- Run | Yrd Mat Min Sub Combat Hostiles Destroyed 17 | . 2 6 9 Guns 17 | . 2 6 9 Classes Destroyed 6 | 2 1 1 2 Tunneler 4 | 3 . 1 . Recycler 1 | 1 . . . Swarmer 9 | . . 2 7 Grunt 6 | . 2 4 . Sentry 1 | . . . 1 Subdweller 1 | . . . 1 Best Kill Streak 4 | 4 1 3 4 Combat Bots Only 4 | . 1 2 4 Max Kills in Single Turn 1 | 1 1 1 1 Gunslinging . | . . . . Exploded . | . . . . Melee . | . . . . Uniques/NPCs Destroyed . | . . . . Combat | -11 -10 -10 -10 -------- Run | Yrd Mat Min Sub Hostile Shots Fired 159 | . 41 51 67 Missed 59 | . 14 13 32 Damage Taken 1110 | . 293 403 414 Core 254 | . 79 94 81 Absorbed by Shields . | . . . . Core Remaining (%) 100 | 100 . . . Volleys Fired 77 | 12 17 24 24 Largest 2 | 2 2 2 2 Hottest 100 | 40 40 40 100 Shots Fired 133 | 24 34 37 38 Gun 127 | 24 34 37 32 Cannon 1 | . . . 1 Launcher . | . . . . Special 5 | . . . 5 Kinetic 127 | 24 34 37 32 Thermal 6 | . . . 6 Explosive . | . . . . Electromagnetic . | . . . . Robot Hit Streak 17 | 17 8 9 15 Robot Miss Streak 3 | 1 1 3 2 Penetration Max . | . . . . Secondary Targets 5 | . . 2 3 Max Gunslinging Chain 1 | . . 1 1 Shots Hit Robots 90 | 19 21 24 26 Core Hits 37 | 6 7 13 11 Critical Kills 1 | . 1 . . Critical Parts Destroyed . | . . . . Critical Strikes 1 | . 1 . . Destroy 1 | . 1 . . Melee Attacks . | . . . . Impact . | . . . . Slashing . | . . . . Piercing . | . . . . Sneak Attacks . | . . . . Combat Hostiles . | . . . . Follow-up Attacks . | . . . . Damage Inflicted 1066 | 200 201 261 404 Guns 1020 | 200 201 261 358 Cannons 46 | . . . 46 Explosions . | . . . . Melee . | . . . . Ramming . | . . . . Kinetic 1020 | 200 201 261 358 Thermal 46 | . . . 46 Explosive . | . . . . Electromagnetic . | . . . . Impact . | . . . . Slashing . | . . . . Piercing . | . . . . Highest Corruption . | . . . . Average Corruption . | . . . . Corruption Purged . | . . . . Corruption Blocked . | . . . . Overload Shots . | . . . . Overflow Damage . | . . . . Projectiles . | . . . . Explosions . | . . . . Melee . | . . . . Knockbacks . | . . . . Impact . | . . . . Kinetic . | . . . . Secondary . | . . . . Self-Inflicted Damage . | . . . . Shots . | . . . . Rammed . | . . . . Targets Rammed . | . . . . Kicked . | . . . . Crushed . | . . . . Highest Temperature 49 | . 22 49 11 Average Temperature 12 | . 4 17 10 Received Heat Transfer 429 | . 87 177 165 Siege Activations . | . . . . Robots Corrupted . | . . . . Combat Hostiles . | . . . . Parts Fried . | . . . . Impact Corruptions . | . . . . Robots Melted . | . . . . Combat Hostiles . | . . . . Parts Melted . | . . . . Heat Transferred . | . . . . Parts Sabotaged . | . . . . Parts Stolen . | . . . . Parts Stripped . | . . . . Power Chain Reactions . | . . . . Alert | -11 -10 -10 -10 ------- Run | Yrd Mat Min Sub Peak Influence 174 | 20 63 174 . Initial 24 | . 13 24 . Average 52 | 9 25 66 . Maximum Alert Level . | . . . . Low Security (%) 100 | 100 100 100 . Level 1 . | . . . . Level 2 . | . . . . Level 3 . | . . . . Level 4 . | . . . . Level 5 . | . . . . High Security . | . . . . Max Security . | . . . . Squads Dispatched 1 | . 1 . . Investigation 1 | . 1 . . Extermination . | . . . . Reinforcement . | . . . . Assault . | . . . . Garrison . | . . . . Intercept . | . . . . Searches Triggered . | . . . . Construction Impeded . | . . . . Haulers Reinforced . | . . . . Active Scanning Responses . | . . . . Cargo Convoy Interrupts . | . . . . Stealth | -11 -10 -10 -10 --------- Run | Yrd Mat Min Sub Distress Signals . | . . . . Communications Jammed . | . . . . Distress Signals . | . . . . Times Spotted 40 | . 6 10 24 Peak Tracking Total 6 | . 4 3 6 Tactical Retreats 4 | . . . 4 Traps | -11 -10 -10 -10 ------- Run | Yrd Mat Min Sub Traps Triggered 1 | . 1 . . Indirectly . | . . . . Trap Hack Attempts . | . . . . Triggered . | . . . . Disarmed . | . . . . Reprogrammed . | . . . . Reused . | . . . . Traps Extracted . | . . . . Installed . | . . . . Triggered . | . . . . Machines | -11 -10 -10 -10 ---------- Run | Yrd Mat Min Sub Machines Disabled . | . . . . Max in Single Turn . | . . . . Machines Repaired . | . . . . Machines Dismantled . | . . . . Machines Sabotaged . | . . . . Overloaded Fab Kills . | . . . . Hacking | -11 -10 -10 -10 --------- Run | Yrd Mat Min Sub Machines Accessed 2 | . 2 . . Terminals 1 | . 1 . . Fabricators . | . . . . Repair Stations . | . . . . Recycling Units 1 | . 1 . . Scanalyzers . | . . . . Garrison Access . | . . . . Total Hacks 5 | . 5 . . Successful 2 | . 2 . . Failed 3 | . 3 . . Catastrophic . | . . . . Database Lockouts . | . . . . Manual 1 | . 1 . . Terminals 3 | . 3 . . Fabricators . | . . . . Repair Stations . | . . . . Recycling Units 2 | . 2 . . Scanalyzers . | . . . . Garrison Access . | . . . . Terminal Hacks . | . . . . Fabricator Hacks . | . . . . Repair Station Hacks . | . . . . Recycling Unit Hacks 1 | . 1 . . Report Inventory 1 | . 1 . . Scanalyzer . | . . . . Garrison Access Hacks . | . . . . Unauthorized Hacks 1 | . 1 . . Terminals . | . . . . Fabricators . | . . . . Repair Stations . | . . . . Recycling Units 1 | . 1 . . Reject 1 | . 1 . . Scanalyzers . | . . . . Garrison Access . | . . . . Data Cores Recovered . | . . . . Used . | . . . . Hacking Detections 2 | . 2 . . Full Trace Events . | . . . . Feedback Events . | . . . . Feedback Blocked . | . . . . Robot Schematics Acquired . | . . . . Robots Built . | . . . . Authchips . | . . . . Time . | . . . . Total Robot Build Rating . | . . . . Part Schematics Acquired . | . . . . Parts Built . | . . . . Authchips . | . . . . Time . | . . . . Total Part Build Rating . | . . . . Parts Repaired . | . . . . Time . | . . . . Parts Recycled . | . . . . Recycled Matter . | . . . . Retrieved Matter . | . . . . Retrieved Components . | . . . . Parts Scanalyzed . | . . . . Part Schematics Acquired . | . . . . Parts Damaged . | . . . . Bothacking | -11 -10 -10 -10 ------------ Run | Yrd Mat Min Sub Used RIF Installer . | . . . . Robots Hacked . | . . . . Non-combat . | . . . . Combat . | . . . . Robot Hacks Applied . | . . . . Relay Couplers Released . | . . . . Fabnet Peak Effective % . | . . . . Robots Rewired . | . . . . Allies Hacked . | . . . . Hacks Repelled . | . . . . Allies | -11 -10 -10 -10 -------- Run | Yrd Mat Min Sub Total Allies . | . . . . Largest Group . | . . . . Highest-Rated Group . | . . . . Highest-Rated Ally . | . . . . Total Orders . | . . . . Ally Attacks . | . . . . Total Damage . | . . . . Kills . | . . . . Allies Corrupted . | . . . . Allies Melted 1 | . . . 1 Intel | -11 -10 -10 -10 ------- Run | Yrd Mat Min Sub Robot Analysis Total . | . . . . Derelict Logs Recovered 3 | . . 2 1 Drone Launches . | . . . . Drone Recoveries . | . . . . Exploration | -11 -10 -10 -10 ------------- Run | Yrd Mat Min Sub Turns Passed 1648 | 121 234 831 462 Spaces Moved 783 | 61 105 401 216 Core 6 | 6 . . . Treads 704 | . 99 401 204 Legs 61 | 55 6 . . Wheels 12 | . . . 12 Hover . | . . . . Flight . | . . . . Fastest Speed 50 | 50 120 160 110 Average Speed 155 | 116 157 160 157 Slowest Speed 160 | 150 160 160 160 Overloaded Moves . | . . . . Propulsion Burnouts . | . . . . Robots Hopped . | . . . . Cave-ins Triggered . | . . . . Exploration Rate (%) 26 | 4 25 66 12 Regions Visited 3 Branch Regions 2 Pre-discovered Areas 3 | . . 3 . Known Exits Taken . | . . . . Unknown Exits Taken 3 | 1 1 1 . Scrap Searched 2 | . . 1 1 Spaces Dug . | . . . . Terrain Destroyed 1 | . . . 1 Melee . | . . . . Projectile 1 | . . . 1 AOE . | . . . . Terrain Rammed . | . . . . Walls Destroyed . | . . . . Machines Disabled . | . . . . Actions | -11 -10 -10 -10 --------- Run | Yrd Mat Min Sub Total 1082 | 86 145 559 292 Wait 156 | . 2 127 27 Move 780 | 60 104 400 216 Hop . | . . . . Pick Up 20 | 4 7 2 7 Fast Attach 14 | 8 2 1 3 Attach 9 | . 2 3 4 Detach 1 | . . . 1 Swap 7 | . 2 . 5 Drop 18 | 2 9 2 5 Fire 77 | 12 17 24 24 Melee . | . . . . Ram . | . . . . Kick . | . . . . Crush . | . . . . Escape Stasis . | . . . . Rewire . | . . . . Trap . | . . . . Miscellaneous . | . . . . Route ------- -11/Scrapyard -10/Materials -10/Mines (discovered 2 exits: [*Mat] / [*Sub]) -10/Subcaves History --------- Turn | Location | Event 12 | -11/Scrapyard | Discovered new exit (range 15) 122 | -11/Scrapyard | Entered Materials 305 | -10/Materials | Build established: Mutant 332 | -10/Materials | Discovered new exit (range 7) 356 | -10/Materials | Entered Mines 412 | -10/Mines | Core integrity fell below 50% 416 | -10/Mines | Discovered new exit (range 10) 755 | -10/Mines | Learned location of Zion (-7) 766 | -10/Mines | Learned location of Mines (-9) 1030 | -10/Mines | Learned location of Storage (-7) 1178 | -10/Mines | Discovered new exit (range 5) 1187 | -10/Mines | Entered Subcaves 1314 | -10/Subcaves | Shifting Twisted Machinery released Battle Rifle 1319 | -10/Subcaves | Shifting Twisted Machinery released Battle Rifle 1375 | -10/Subcaves | Learned Materials emergency access door positions 1598 | -10/Subcaves | A Subdweller sparked back to life 1598 | -10/Subcaves | A Subdweller sparked back to life 1608 | -10/Subcaves | Core integrity fell below 20% 1629 | -10/Subcaves | Found Prototype Energy Cannon 1629 | -10/Subcaves | Identified Powered Cannon 1631 | -10/Subcaves | Attached Powered Cannon, gained temporary slot: Power 1649 | -10/Subcaves | Destroyed by N0-CS7(R) with Subdweller Laser Last Messages --------------- 01588_ Imp. Treads destroyed. 01598_ 6D-LZ1(R) creaks and sparks as it begins to move. 01598_ HJ-K6S(R) creaks and sparks as it begins to move. 01605_ 6D-LZ1(R) affixes Scrap Shield Fragment to Scrap Shield. 01607_ HJ-K6S(R) destroyed. 01609_ Battle Rifle destroyed. 01615_ 6D-LZ1(R) destroyed. 01617_ Acquired 32 matter. 01622_ Acquired Sub. Optics. 01626_ Acquired Sub. Monowheel. 01629_ Acquired Prototype Energy Cannon. 01629_ Identified Powered Cannon. 01631_ Core temporarily expanded with Power slot. 01631_ Acquired 36 matter. 01633_ Acquired Sub. Power Source. 01634_ Acquired 10 matter. Map ----- +----------------------------------------------------+ | ???????????????### # ##????????? | | ?????????????????# ## #????????? | | ?????????????? ?## #????????? | | ?????????????# ??## #????????? | | ??????????????# ???## ### #????????? | | ??????????????# ????## ##?# #????????? | | ??????????????? ??????## ##### #????????? | | ??????????????? ??????# ##????????? | | ???????????????? ? ??????## #?????????? | | ??????????????????? ??????????# # ##?????????? | | ???????????????????????????######## #??????????? | | ???????????????????????????# ## #[ ##??????????? | | ???????????????????????????# % ## #??????????? | | ???????????????????????????# #% ## ##??????????? | | ??????????????????????????## # #?###???????????? | | ??????????????????????????# ##???????????????? | | ??????????????????????????## ## #??????????????? | | ??????????????????????????##R######??????????????? | | ?????????????????????????## #??????????????????? | | ????????????????????????## ##???#?????????????? | | ????????????????????????# #### ####?????????? | | ?????????????????????##### ## #?????????? | | ?????????????????##### <## # ## # ##?????????? | | ?????????????????#